bitfinex/quotes_SOLUSD_20240826
["timestamp","ask_amount","ask_price","bid_price","bid_amount"]
[1724644672994,15.293,160.26,160.23,15.6023]
[1724644680889,21.5328,160.26,160.21,6.2417]
[1724644681211,33.57281149,160.26,160.21,6.2417]
[1724644683710,27.33301149,160.26,160.21,6.2417]
[1724644687989,33.57301149,160.26,160.21,6.2417]
[1724644689098,15.293,160.26,160.21,15.6036]
[1724644689302,15.293,160.26,160.23,15.6018]
[1724644689491,15.293,160.26,160.24,6.2403]
[1724644692424,15.293,160.26,160.25,6.2402]
[1724644698526,113.2865053,160.3,160.25,6.2402]
[1724644702130,113.2865053,160.3,160.26,6.2398]
[1724644703517,113.2865053,160.3,160.26,21.8392]
[1724644703927,113.2865053,160.3,160.26,15.5994]
[1724644704120,113.2865053,160.3,160.27,6.2393]
[1724644705629,97.2824053,160.3,160.29,6.2386]
[1724644717541,97.2824053,160.3,160.29,18.27861149]
[1724644717851,97.2824053,160.3,160.29,83.27861149]
[1724644720944,93.0841053,160.3,160.29,83.27861149]
[1724644721742,23.8160977,160.3,160.29,83.27861149]
[1724644721927,23.8160977,160.3,160.29,86.89410014]
[1724644722264,14.83923561,160.3,160.29,86.89410014]
[1724644722616,10.28293561,160.3,160.29,104.92610014]
[1724644722848,6.59423561,160.3,160.29,104.92610014]
[1724644723218,3.43303561,160.3,160.29,104.92610014]
[1724644723419,0.1,160.4,160.29,146.8475461]
[1724644723622,0.1,160.4,160.36,12.04001149]
[1724644725748,0.1,160.4,160.38,12.04001149]
[1724644730140,0.1,160.4,160.36,6.3392]
[1724644730357,0.1,160.4,160.37,77.04001149]
[1724644732451,0.1,160.4,160.37,65.0]
[1724644732754,0.1,160.4,160.37,20.0]
[1724644733768,0.1,160.4,160.34,12.04001149]
[1724644733956,0.1,160.4,160.35,65.0]
[1724644742750,0.1,160.4,160.36,12.04001149]
[1724644742955,0.1,160.4,160.38,12.04001149]
[1724644749667,0.1,160.4,160.35,20.0]
[1724644749866,0.1,160.4,160.33,12.04001149]
[1724644751579,0.1,160.4,160.34,20.0]
[1724644753169,0.1,160.4,160.35,57.04001149]
[1724644753684,22.4651,160.34,160.2,24.97673]
[1724644753868,22.4651,160.34,160.23,12.04001149]
[1724644754077,34.50511149,160.34,160.23,12.04001149]
[1724644754381,28.7022,160.34,160.25,12.04001149]
[1724644754794,6.2372,160.33,160.25,12.04001149]
[1724644758699,28.7021,160.34,160.21,1.24927286]
[1724644758996,28.7021,160.34,160.25,12.04001149]
[1724644760565,6.2371,160.33,160.25,12.04001149]
[1724644762099,22.4651,160.34,160.25,12.04001149]
[1724644762280,22.4651,160.34,160.27,12.04001149]
[1724644762482,22.4651,160.34,160.29,12.04001149]
[1724644763095,22.4651,160.34,160.27,1.24762867]
[1724644763395,22.4651,160.34,160.28,12.04001149]
[1724644764108,22.4651,160.34,160.26,77.04001149]
[1724644764409,22.4651,160.34,160.26,65.0]
[1724644764694,28.7018,160.34,160.26,65.0]
[1724644765599,22.4651,160.34,160.26,65.0]
[1724644765969,22.4651,160.34,160.27,12.04001149]
[1724644766172,22.4651,160.34,160.28,45.0]
[1724644767275,15.8923,160.34,160.29,32.04001149]
[1724644767473,15.8923,160.34,160.3,45.0]
[1724644770698,21.7037,160.38,160.31,32.04001149]
[1724644770900,21.7037,160.38,160.32,45.0]
[1724644772793,15.1775,160.38,160.33,20.0]
[1724644773101,15.1775,160.38,160.34,45.0]
[1724644773604,15.1775,160.38,160.33,20.0]
[1724644773807,15.1775,160.38,160.32,20.0]
[1724644774104,15.1775,160.38,160.33,45.0]
[1724644778395,15.1775,160.38,160.33,45.0]
[1724644789285,0.08167158,160.34,160.33,45.0]
[1724644789486,0.08167158,160.34,160.33,65.0]
[1724644790391,0.08167158,160.34,160.33,77.04001149]
[1724644795118,0.08167158,160.34,160.33,20.0]
[1724644795292,0.08167158,160.34,160.31,12.04001149]
[1724644795493,0.08167158,160.34,160.32,20.0]
[1724644801225,15.16897158,160.34,160.32,20.0]
[1724644801432,15.16897158,160.34,160.24,6.51323068]
[1724644801626,15.16897158,160.34,160.27,12.04001149]
[1724644802197,15.16897158,160.34,160.29,12.04001149]
[1724644802398,0.08167158,160.34,160.33,12.04001149]
[1724644802905,0.08167158,160.34,160.33,77.04001149]
[1724644803913,0.08167158,160.34,160.33,78.28859817]
[1724644804108,0.08167158,160.34,160.33,77.04001149]
[1724644804508,0.08167158,160.34,160.33,78.28859624]
[1724644806708,0.08167158,160.34,160.33,78.28858951]
[1724644807816,0.08167158,160.34,160.33,82.10139291]
[1724644809838,0.08167158,160.34,160.33,77.04001149]
[1724644810041,0.08167158,160.34,160.33,88.51324941]
[1724644810237,0.08167158,160.34,160.33,82.09865807]
[1724644810526,0.08167158,160.34,160.33,78.28845768]
[1724644810716,0.08167158,160.34,160.33,70.05864661]
[1724644811119,0.08167158,160.34,160.33,78.03374359]
[1724644812002,0.08167158,160.34,160.33,79.28212213]
[1724644812223,0.08167158,160.34,160.33,89.5055659]
[1724644812429,0.08167158,160.34,160.33,81.84256518]
[1724644812632,0.08167158,160.34,160.33,78.03236476]
[1724644813300,0.08167158,160.34,160.33,67.80895497]
[1724644814020,0.08167158,160.34,160.33,67.80898683]
[1724644814227,0.08167158,160.34,160.33,74.22346015]
[1724644814629,0.08167158,160.34,160.33,80.87024278]
[1724644816542,0.08167158,160.34,160.33,69.0845996]
[1724644816842,0.08167158,160.34,160.33,80.86866863]
[1724644818440,0.08167158,160.34,160.33,89.12530463]
[1724644819712,0.08167158,160.34,160.33,89.12565466]
[1724644822839,0.08167158,160.34,160.33,74.45512715]
[1724644823046,0.08167158,160.34,160.33,85.31205531]
[1724644823336,0.08167158,160.34,160.33,93.20577045]
[1724644823713,0.08167158,160.34,160.33,89.12171203]
[1724644823914,0.08167158,160.34,160.33,72.97331975]
[1724644824119,0.08167158,160.34,160.33,95.53897283]
[1724644824338,0.1,160.4,160.33,97.42095049]
[1724644824638,0.1,160.4,160.39,12.04001149]
[1724644824838,0.1,160.4,160.39,38.65893111]
[1724644825036,0.1,160.4,160.39,47.90956528]
[1724644826128,0.1,160.4,160.39,47.90923231]
[1724644827359,0.1,160.4,160.39,45.07291353]
[1724644829232,0.1,160.4,160.39,32.04001149]
[1724644829431,0.1,160.4,160.39,34.84833726]
[1724644829636,0.1,160.4,160.39,41.25988106]
[1724644829835,0.1,160.4,160.39,45.06824442]
[1724644830824,0.1,160.4,160.39,90.06824442]
[1724644831241,0.1,160.4,160.39,101.15210903]
[1724644831546,0.1,160.4,160.39,90.06824442]
[1724644832546,0.1,160.4,160.39,90.06681733]
[1724644836024,0.1,160.4,160.39,90.06725686]
[1724644837153,0.1,160.4,160.39,83.65623653]
[1724644838767,0.1,160.4,160.39,77.04001149]
[1724644838945,0.1,160.4,160.39,26.61617457]
[1724644839141,0.1,160.4,160.39,5.36808865]
[1724644839338,0.1,160.4,160.35,2.80836991]
[1724644839544,0.1,160.4,160.36,1.5601074]
[1724644839865,0.1,160.4,160.37,1.5601074]
[1724644840162,0.1,160.4,160.38,1.5601074]
[1724644840341,0.1,160.4,160.36,1.5601074]
[1724644840545,0.1,160.4,160.35,5.05815131]
[1724644840546,0.1,160.4,160.37,1.5601074]
[1724644840767,0.1,160.4,160.38,1.5601074]
[1724644841062,0.1,160.4,160.37,1.56052431]
[1724644841247,0.1,160.4,160.38,1.56052431]
[1724644841447,0.1,160.4,160.36,5.37223454]
[1724644841650,0.1,160.4,160.37,1.56052431]
[1724644841963,0.1,160.4,160.38,1.56052431]
[1724644842161,0.1,160.4,160.37,1.56052431]
[1724644842455,0.1,160.4,160.38,1.56052431]
[1724644842662,0.1,160.4,160.37,1.56052431]
[1724644842863,0.1,160.4,160.38,1.56052431]
[1724644843042,0.1,160.4,160.37,1.56052431]
[1724644843241,0.1,160.4,160.38,1.56052431]
[1724644843455,0.1,160.4,160.37,1.56052431]
[1724644843650,0.1,160.4,160.38,1.56052431]
[1724644844362,0.1,160.4,160.37,45.0]
[1724644844567,0.1,160.4,160.38,6.61869078]
[1724644844883,0.1,160.4,160.39,1.56031367]
[1724644845055,0.1,160.4,160.39,82.41045133]
[1724644845252,0.1,160.4,160.39,88.8236777]
[1724644845863,0.1,160.4,160.39,97.07534857]
[1724644848177,0.1,160.4,160.39,89.10180853]
[1724644848371,0.1,160.4,160.39,97.06750029]
[1724644848547,0.1,160.4,160.39,76.77683584]
[1724644848871,0.1,160.4,160.39,5.36717129]
[1724644849046,0.1,160.4,160.39,1.55994117]
[1724644850745,0.1,160.4,160.39,50.37063476]
[1724644851069,0.1,160.4,160.39,5.37063476]
[1724644851270,0.1,160.4,160.39,25.37063476]
[1724644851568,0.1,160.4,160.39,21.56026929]
[1724644851770,0.1,160.4,160.39,25.36994357]
[1724644852272,0.1,160.4,160.39,76.78396385]
[1724644854677,0.1,160.4,160.39,76.78387481]
[1724644854856,0.1,160.4,160.39,75.22369456]
[1724644855060,0.1,160.4,160.39,76.78387481]
[1724644855964,0.1,160.4,160.39,88.8238863]
[1724644856648,0.1,160.4,160.39,97.07840319]
[1724644857776,0.1,160.4,160.39,90.66438291]
[1724644857966,0.1,160.4,160.39,78.60019174]
[1724644858153,0.1,160.4,160.39,97.07687288]
[1724644860769,0.1,160.4,160.39,78.60013806]
[1724644860973,0.1,160.4,160.39,85.03849229]
[1724644862479,0.1,160.4,160.39,31.78302083]
[1724644862663,0.1,160.4,160.39,25.36960065]
[1724644862867,0.1,160.4,160.39,25.36978717]
[1724644863549,0.1,160.4,160.39,25.36981864]
[1724644865979,0.1,160.4,160.39,5.36981864]
[1724644866277,15.9283,160.4,160.39,5.36981864]
[1724644866655,15.9283,160.4,160.39,1.56034456]
[1724644866872,15.9283,160.4,160.33,12.04001149]
[1724644867073,15.9283,160.4,160.34,26.41917806]
[1724644867273,15.9283,160.4,160.35,7.97970587]
[1724644867471,15.9283,160.4,160.36,20.0]
[1724644867677,15.9283,160.4,160.36,26.41917806]
[1724644868064,15.9283,160.4,160.36,20.0]
[1724644868270,15.9283,160.4,160.34,20.0]
[1724644868881,15.9283,160.4,160.35,57.04001149]
[1724644869066,15.9283,160.4,160.36,20.0]
[1724644875074,15.9283,160.4,160.37,12.04001149]
[1724644877899,15.9283,160.4,160.36,20.0]
[1724644889077,15.9283,160.4,160.36,32.04001149]
[1724644889490,15.9283,160.4,160.37,45.0]
[1724644890588,15.9283,160.4,160.36,20.0]
[1724644890759,15.9283,160.4,160.35,20.0]
[1724644890964,15.9283,160.4,160.36,45.0]
[1724644892378,15.9283,160.4,160.37,2.83763672]
[1724644894699,15.9283,160.4,160.37,2.83838492]
[1724644898198,15.9283,160.4,160.37,2.83863571]
[1724644901483,15.9283,160.4,160.38,4.08554434]
[1724644901697,15.9283,160.4,160.39,2.83863571]
[1724644901698,0.1,160.4,160.39,2.83863571]
[1724644901891,0.1,160.4,160.39,2.84020146]
[1724644902100,0.1,160.4,160.39,65.0]
[1724644902460,0.8302845,160.44,160.39,143.58224003]
[1724644902598,0.8302845,160.44,160.43,12.04001149]
[1724644902800,0.8302845,160.44,160.43,85.96373914]
[1724644902987,0.8302845,160.44,160.43,78.28622627]
[1724644903184,0.8302845,160.44,160.43,98.59812627]
[1724644903985,0.8302845,160.44,160.43,101.0935141]
[1724644904285,0.8302845,160.44,160.43,87.2122141]
[1724644904481,0.8302845,160.44,160.43,85.96599932]
[1724644905010,0.8302845,160.44,160.43,87.2137762]
[1724644905407,0.8302845,160.44,160.43,96.38943068]
[1724644907707,2.3955845,160.54,160.45,12.04001149]
[1724644907910,2.3955845,160.54,160.46,68.74316471]
[1724644908225,2.3955845,160.54,160.47,2.49545607]
[1724644908525,2.3955845,160.54,160.48,2.49545607]
[1724644908826,2.3955845,160.54,160.47,2.49545607]
[1724644909034,2.3955845,160.54,160.48,2.49545607]
[1724644909329,2.3955845,160.54,160.47,2.49545607]
[1724644910541,2.3955845,160.54,160.47,2.49526305]
[1724644911329,2.3955845,160.54,160.46,65.0]
[1724644913630,12.04001149,160.53,160.46,20.0]
[1724644913851,12.04001149,160.53,160.44,22.49541676]
[1724644914556,12.04001149,160.53,160.44,22.49544405]
[1724644915122,12.04001149,160.53,160.44,34.53545554]
[1724644915322,12.04001149,160.53,160.45,2.49544405]
[1724644915627,12.04001149,160.53,160.45,2.49547122]
[1724644916131,12.04001149,160.53,160.44,32.04001149]
[1724644917733,12.04001149,160.53,160.45,2.49545865]
[1724644917934,12.04001149,160.53,160.45,2.49540544]
[1724644919144,2.3955845,160.54,160.46,12.04001149]
[1724644919350,2.3955845,160.54,160.45,47.49540544]
[1724644919657,2.3955845,160.54,160.46,32.04001149]
[1724644920232,2.3955845,160.54,160.47,45.0]
[1724644922069,16.0348,160.55,160.48,12.04001149]
[1724644925867,16.0348,160.55,160.49,65.0]
[1724644926657,16.0348,160.55,160.49,20.0]
[1724644930464,28.07481149,160.55,160.49,20.0]
[1724644930669,12.04001149,160.53,160.45,2.49511111]
[1724644931459,12.04001149,160.51,160.45,2.49511111]
[1724644934173,12.04001149,160.47,160.42,2.49570618]
[1724644934329,15.7931,160.46,160.39,9.17565448]
[1724644934530,15.7931,160.46,160.39,11.67136066]
[1724644934833,15.7931,160.46,160.39,9.17565448]
[1724644935057,15.7931,160.46,160.39,11.67136066]
[1724644935353,15.7931,160.46,160.39,9.17565448]
[1724644935560,15.7931,160.46,160.39,11.67136066]
[1724644935743,15.7931,160.46,160.39,9.17565448]
[1724644935945,15.7931,160.46,160.39,11.67136066]
[1724644936135,15.7931,160.46,160.39,9.17565448]
[1724644936336,15.7931,160.46,160.39,11.67136066]
[1724644936532,15.7931,160.46,160.39,9.17565448]
[1724644936746,15.7931,160.46,160.4,20.0]
[1724644937361,15.7931,160.46,160.38,20.0]
[1724644937660,15.7931,160.46,160.39,2.49621698]
[1724644938342,15.7931,160.46,160.4,2.49621698]
[1724644938537,15.7931,160.46,160.39,2.49621698]
[1724644939159,15.7931,160.46,160.4,2.49621698]
[1724644939458,15.7931,160.46,160.39,2.49621698]
[1724644940352,15.7931,160.46,160.4,2.4963032]
[1724644940555,15.7931,160.46,160.39,22.4963032]
[1724644941156,15.7931,160.46,160.4,2.4963032]
[1724644941354,15.7931,160.46,160.39,22.4963032]
[1724644941663,15.7931,160.46,160.4,2.4963032]
[1724644942064,15.7931,160.46,160.39,22.4963032]
[1724644942361,12.04001149,160.43,160.4,2.4963032]
[1724644942669,12.04001149,160.43,160.37,2.4963032]
[1724644942962,12.04001149,160.43,160.38,2.4963032]
[1724644943168,12.04001149,160.43,160.35,2.4963032]
[1724644943371,12.04001149,160.43,160.36,2.4963032]
[1724644943571,12.04001149,160.43,160.37,2.4963032]
[1724644943763,12.04001149,160.43,160.38,2.4963032]
[1724644943938,12.04001149,160.43,160.37,2.4963032]
[1724644944135,15.6385,160.42,160.38,2.4963032]
[1724644944363,15.6385,160.42,160.37,2.4963032]
[1724644944563,15.6385,160.42,160.38,2.4963032]
[1724644944757,15.6385,160.42,160.39,2.4963032]
[1724644944973,15.6385,160.48,160.4,2.4963032]
[1724644945143,15.6385,160.48,160.41,2.4963032]
[1724644945344,15.6385,160.48,160.4,2.4963032]
[1724644945534,15.6385,160.48,160.41,2.4963032]
[1724644945743,15.6385,160.48,160.4,2.4963032]
[1724644946054,15.6385,160.48,160.41,2.4963032]
[1724644946265,15.6385,160.48,160.4,2.4963032]
[1724644946570,15.6385,160.48,160.41,2.49614642]
[1724644946741,15.6385,160.48,160.42,2.49614642]
[1724644946941,15.6385,160.48,160.41,2.49614642]
[1724644947137,15.6385,160.48,160.42,2.49614642]
[1724644947445,15.6385,160.48,160.41,2.49614642]
[1724644947656,15.6385,160.48,160.42,2.49614642]
[1724644947884,15.6385,160.48,160.41,2.49614642]
[1724644948049,15.6385,160.48,160.42,2.49614642]
[1724644948245,15.6385,160.48,160.4,45.0]
[1724644948246,15.6385,160.48,160.41,2.49614642]
[1724644948478,15.6385,160.48,160.42,2.49614642]
[1724644948678,15.6385,160.48,160.43,2.49614642]
[1724644948851,15.6385,160.48,160.42,2.49591535]
[1724644949058,15.6385,160.48,160.43,2.49591535]
[1724644949260,15.6385,160.48,160.41,20.0]
[1724644949459,15.6385,160.48,160.42,2.49588702]
[1724644949654,15.6385,160.48,160.43,2.49588702]
[1724644949856,15.6385,160.48,160.44,2.49588702]
[1724644950169,15.6385,160.48,160.42,2.49588702]
[1724644950367,15.6385,160.48,160.43,2.49588702]
[1724644950542,15.6385,160.48,160.42,47.49588702]
[1724644950880,15.6385,160.48,160.43,2.49588702]
[1724644951054,12.04001149,160.47,160.39,20.0]
[1724644951250,12.04001149,160.47,160.4,2.49624896]
[1724644951455,12.04001149,160.47,160.38,2.49636692]
[1724644951647,12.04001149,160.47,160.39,2.49636692]
[1724644951849,12.04001149,160.47,160.4,2.49636692]
[1724644952051,12.04001149,160.47,160.37,2.49636692]
[1724644952269,12.04001149,160.47,160.38,2.49636692]
[1724644952475,12.04001149,160.47,160.39,2.49636692]
[1724644952669,12.04001149,160.47,160.4,2.49636692]
[1724644952854,12.04001149,160.47,160.38,20.0]
[1724644953063,12.04001149,160.47,160.39,2.4963369]
[1724644953357,12.04001149,160.47,160.38,20.0]
[1724644953571,12.04001149,160.47,160.4,2.49633726]
[1724644953876,12.04001149,160.47,160.39,2.49633726]
[1724644954051,27.67851149,160.48,160.38,32.04001149]
[1724644954246,27.67851149,160.48,160.39,45.0]
[1724644954482,15.6385,160.48,160.4,32.04001149]
[1724644954686,15.6385,160.48,160.41,45.0]
[1724644955675,27.67851149,160.48,160.4,20.0]
[1724644955969,27.67851149,160.48,160.39,20.0]
[1724644956175,27.67851149,160.48,160.4,45.0]
[1724644957187,15.6385,160.48,160.41,1.24662571]
[1724644957367,15.6385,160.48,160.41,21.24662571]
[1724644957557,15.6385,160.48,160.41,20.0]
[1724644961054,27.67851149,160.48,160.41,20.0]
[1724644962065,12.04001149,160.46,160.41,20.0]
[1724644962265,12.04001149,160.46,160.37,22.83405796]
[1724644962955,12.04001149,160.46,160.38,1.24677115]
[1724644963260,27.67851149,160.48,160.38,13.28678264]
[1724644963468,27.67851149,160.48,160.39,20.0]
[1724644963888,15.6385,160.48,160.39,20.0]
[1724644964090,27.67851149,160.48,160.39,20.0]
[1724644964975,27.67851149,160.48,160.39,22.83328897]
[1724644965775,15.6385,160.48,160.4,13.28667102]
[1724644965977,15.6385,160.48,160.41,20.0]
[1724644966280,15.6385,160.48,160.42,1.24655828]
[1724644966885,15.6385,160.48,160.41,20.0]
[1724644968089,15.6385,160.48,160.42,1.24658579]
[1724644969772,15.6385,160.48,160.41,20.0]
[1724644970012,15.6385,160.48,160.41,22.83151594]
[1724644972366,15.6385,160.48,160.42,58.28641574]
[1724644972685,15.6385,160.48,160.44,12.04001149]
[1724644973380,16.0542,160.52,160.46,12.04001149]
[1724644973879,16.0542,160.52,160.48,12.04001149]
[1724644974268,16.0542,160.52,160.49,20.0]
[1724644974468,16.0542,160.52,160.49,21.24595232]
[1724644974691,16.0542,160.52,160.49,20.0]
[1724644976983,16.2856,160.56,160.5,12.04001149]
[1724644977291,16.2856,160.56,160.51,1.24582069]
[1724644977885,16.2856,160.56,160.51,21.24582069]
[1724644978083,16.2856,160.56,160.52,1.2458158]
[1724644978292,16.2856,160.56,160.52,13.28582729]
[1724644978464,16.2856,160.59,160.53,20.0]
[1724644979179,16.2856,160.59,160.54,1.24566483]
[1724644979382,16.2856,160.59,160.53,20.0]
[1724644979679,16.2856,160.59,160.54,58.28550806]
[1724644979883,16.2856,160.59,160.55,1.24547252]
[1724644980082,16.2856,160.59,160.54,57.04001149]
[1724644980591,16.2856,160.59,160.54,45.0]
[1724644980891,16.2856,160.59,160.53,20.0]
[1724644981604,16.2856,160.59,160.51,12.04001149]
[1724644981605,16.2856,160.59,160.52,20.0]
[1724644981981,16.2856,160.59,160.48,8.66605491]
[1724644981982,18.45741149,160.58,160.48,12.04001149]
[1724644982667,18.45741149,160.58,160.46,20.2867]
[1724644982989,18.45741149,160.58,160.48,12.04001149]
[1724644983191,18.45741149,160.58,160.49,20.0]
[1724644983490,16.6358,160.55,160.46,12.04001149]
[1724644983791,16.6358,160.55,160.48,12.04001149]
[1724644984097,16.6358,160.55,160.49,1.24597067]
[1724644984265,16.6358,160.55,160.5,13.28598168]
[1724644984471,16.6358,160.55,160.52,12.04001149]
[1724644985022,16.1836845,160.6,160.54,12.04001149]
[1724644986084,16.1836845,160.6,160.52,29.81646138]
[1724644986404,16.1836845,160.6,160.53,65.0]
[1724644987002,16.1836845,160.6,160.54,29.81646138]
[1724644987189,16.1836845,160.6,160.55,65.0]
[1724644995914,16.1836845,160.6,160.55,20.0]
[1724644996331,16.1836845,160.6,160.53,20.0]
[1724644996509,16.1836845,160.6,160.54,29.81646138]
[1724644996700,16.1836845,160.6,160.55,20.0]
[1724644997126,16.1836845,160.6,160.56,29.81646138]
[1724644997423,16.1836845,160.6,160.57,65.0]
[1724645001327,16.1836845,160.6,160.57,20.0]
[1724645001632,16.1836845,160.6,160.55,20.0]
[1724645002427,16.1836845,160.6,160.46,35.45286957]
[1724645002428,16.1836845,160.6,160.48,42.92533387]
[1724645002620,16.1836845,160.6,160.49,5.35937002]
[1724645002804,16.1836845,160.6,160.5,1.55909135]
[1724645003517,16.1836845,160.6,160.49,5.35937002]
[1724645003830,16.1836845,160.6,160.5,45.0]
[1724645004009,16.1836845,160.6,160.51,1.55909135]
[1724645004428,16.1836845,160.6,160.52,31.06202217]
[1724645004631,16.1836845,160.6,160.53,65.0]
[1724645004803,16.1836845,160.6,160.54,31.37529774]
[1724645005130,16.1836845,160.6,160.55,65.0]
[1724645005511,16.1836845,160.6,160.56,29.81646138]
[1724645005723,16.1836845,160.6,160.57,65.0]
[1724645007709,16.1836845,160.6,160.57,20.0]
[1724645007928,16.1836845,160.6,160.52,6.39013277]
[1724645008237,22.4522845,160.6,160.52,1.55875868]
[1724645008405,22.4522845,160.6,160.53,1.55875868]
[1724645008606,22.4522845,160.6,160.51,1.55875868]
[1724645009214,22.4522845,160.6,160.52,1.55875868]
[1724645009527,22.4522845,160.6,160.51,1.55875868]
[1724645009735,22.4522845,160.6,160.52,1.55875868]
[1724645009928,22.4522845,160.6,160.52,21.55875868]
[1724645010104,22.4522845,160.6,160.52,20.0]
[1724645010311,22.4522845,160.6,160.53,46.55898779]
[1724645010542,22.4522845,160.6,160.54,20.0]
[1724645012099,22.4522845,160.6,160.51,20.0]
[1724645012349,22.4522845,160.6,160.52,50.35854211]
[1724645012514,36.04356138,160.59,160.53,1.5590279]
[1724645012711,6.2274,160.58,160.51,1.5590279]
[1724645013035,15.1883,160.57,160.52,1.55919071]
[1724645013216,15.1883,160.57,160.49,3.80052562]
[1724645013417,15.1883,160.57,160.5,5.35971669]
[1724645013619,15.1883,160.57,160.51,1.55919107]
[1724645013827,15.1883,160.57,160.47,7.760096]
[1724645013828,15.1883,160.57,160.52,1.55919107]
[1724645014027,15.1883,160.57,160.5,6.29522509]
[1724645014221,15.1883,160.57,160.51,21.55918757]
[1724645014407,15.1883,160.57,160.52,1.55918757]
[1724645014610,15.1883,160.57,160.51,20.0]
[1724645014810,15.1883,160.57,160.52,1.55918486]
[1724645015047,15.1883,160.57,160.5,6.29585189]
[1724645015234,15.1883,160.57,160.51,27.85503709]
[1724645015419,15.1883,160.57,160.52,1.5591852]
[1724645015736,15.1883,160.57,160.53,1.55919277]
[1724645016037,15.1883,160.57,160.49,7.54259863]
[1724645016232,15.1883,160.57,160.5,24.05390208]
[1724645016552,15.1883,160.57,160.51,4.05390208]
[1724645016717,15.1883,160.57,160.52,4.05390208]
[1724645016922,15.1883,160.57,160.53,1.55919365]
[1724645017129,15.1883,160.57,160.54,1.55919365]
[1724645017331,15.1883,160.57,160.53,2.49463855]
[1724645017635,15.1883,160.57,160.54,1.55914958]
[1724645017838,15.1883,160.57,160.52,6.29443133]
[1724645018013,15.1883,160.57,160.53,4.0537886]
[1724645018214,15.1883,160.57,160.54,1.55914972]
[1724645018410,15.1883,160.57,160.52,2.49463948]
[1724645018731,15.1883,160.57,160.53,1.55914967]
[1724645018928,15.1883,160.57,160.54,1.55914967]
[1724645019147,15.1883,160.57,160.52,6.29493363]
[1724645019364,15.1883,160.57,160.53,5.35939636]
[1724645019639,15.1883,160.57,160.54,1.55919262]
[1724645019826,15.1883,160.57,160.55,1.55919262]
[1724645020022,15.1883,160.57,160.53,6.2945976]
[1724645020226,15.1883,160.57,160.54,1.55916844]
[1724645020435,15.1883,160.57,160.55,1.55916844]
[1724645020740,15.1883,160.57,160.52,30.13910671]
[1724645021625,15.1883,160.57,160.52,20.0]
[1724645021927,15.1883,160.57,160.53,52.85352255]
[1724645022125,15.1883,160.57,160.54,7.85352255]
[1724645022346,15.1883,160.57,160.55,1.55912706]
[1724645022643,15.1883,160.57,160.56,1.55912728]
[1724645024555,15.1883,160.57,160.56,7.85225058]
[1724645026016,15.1883,160.57,160.56,14.247098]
[1724645026217,15.1883,160.57,160.56,7.85225058]
[1724645026429,15.1883,160.57,160.56,14.24645316]
[1724645026845,15.1883,160.57,160.56,7.85225058]
[1724645027248,15.1883,160.57,160.56,14.24625475]
[1724645027453,15.1883,160.57,160.56,7.85225058]
[1724645028034,15.1883,160.57,160.56,14.24631483]
[1724645029130,15.1883,160.57,160.53,45.0]
[1724645029335,15.1883,160.57,160.54,20.0]
[1724645029541,15.1883,160.57,160.55,7.85075687]
[1724645029754,15.1883,160.57,160.56,7.85075687]
[1724645030564,15.1883,160.57,160.56,14.24467056]
[1724645031366,0.8302845,160.6,160.56,14.24467056]
[1724645031571,0.8302845,160.6,160.57,7.85075687]
[1724645031743,0.8302845,160.6,160.58,3.79777368]
[1724645032065,0.8302845,160.6,160.56,38.31813053]
[1724645032243,0.8302845,160.6,160.57,3.79761272]
[1724645032443,0.8302845,160.6,160.58,3.79761272]
[1724645032758,0.8302845,160.6,160.57,1.24539551]
[1724645033262,0.8302845,160.6,160.58,3.79746816]
[1724645033560,0.8302845,160.6,160.56,31.92449532]
[1724645033948,0.8302845,160.6,160.57,1.24539743]
[1724645034172,0.8302845,160.6,160.56,20.0]
[1724645034375,0.8302845,160.6,160.57,3.79746954]
[1724645034668,0.8302845,160.6,160.58,3.79746954]
[1724645034869,0.8302845,160.6,160.56,20.0]
[1724645035173,0.8302845,160.6,160.57,3.79747016]
[1724645035371,0.8302845,160.6,160.56,20.0]
[1724645035561,0.8302845,160.6,160.57,3.79747005]
[1724645035772,0.8302845,160.6,160.56,45.0]
[1724645036066,0.8302845,160.6,160.57,23.7974732]
[1724645036267,0.8302845,160.6,160.57,20.0]